fUSD/lending_fUSD_20240416
["ID","MTS","AMOUNT","RATE_DAILY","PERIOD"]
[322780393,1713279811953,-156.06585458,0.00032218,30]
[322780394,1713279811974,-188.0,0.00032218,30]
[322780395,1713279811996,-188.0,0.00032218,30]
[322780396,1713279812017,-200.0,0.00032218,30]
[322780397,1713279812038,-176.0,0.00032218,30]
[322780398,1713279812059,-200.0,0.00032218,30]
[322780399,1713279812082,-158.0,0.00032218,30]
[322780400,1713279812103,-1000.0,0.00032218,30]
[322780401,1713279812124,-299.39436518,0.00032218,120]
[322780402,1713279812146,-163.96652958,0.00032218,120]
[322780403,1713279812167,-403.15007478,0.00032218,30]
[322780404,1713279812189,-223.51849091,0.00032218,120]
[322780405,1713279812210,-366.35244804,0.00032218,60]
[322780406,1713279812232,-163.37853767,0.00032218,120]
[322780407,1713279812255,-468.9235418,0.00032218,120]
[322780408,1713279812277,-462.18605729,0.00032218,120]
[322780409,1713279812299,-337.97015149,0.00032218,120]
[322780410,1713279812320,-293.07928049,0.00032218,30]
[322780411,1713279812342,-214.11041306,0.00032218,120]
[322780412,1713279812363,-157.97926926,0.00032218,120]
[322780413,1713279812385,-177.37183003,0.00032218,120]
[322780414,1713279812411,-345.25390091,0.00032218,30]
[322780415,1713279812435,-418.04545581,0.00032218,30]
[322780416,1713279812456,-224.89221638,0.00032218,120]
[322780417,1713279812477,-1722.67498114,0.00032218,30]
[322780418,1713279812498,-358.74991299,0.00032218,30]
[322780419,1713279812519,-275.79213225,0.00032218,120]
[322780420,1713279812540,-170.4610935,0.00032218,120]
[322780421,1713279812563,-396.23284499,0.00032218,120]
[322780422,1713279812584,-153.19297582,0.00032218,120]
[322780423,1713279812606,-187.15387667,0.00032218,120]
[322780424,1713279812628,-272.06980107,0.00032218,120]
[322780425,1713279812648,-223.33693332,0.00032218,120]
[322780426,1713279812671,-280.60820538,0.00032218,120]
[322780427,1713279812693,-407.24123188,0.00032218,120]
[322780428,1713279812715,-248.30657177,0.00032218,120]
[322780429,1713279812738,-245.70400976,0.00032218,30]
[322780430,1713279812761,-1393.58447337,0.00032218,30]
[322780431,1713279812783,-500.0,0.00032218,30]
[322780432,1713279812805,-500.0,0.00032218,30]
[322780433,1713279812827,-10000.0,0.00032218,120]
[322780434,1713279812850,-10000.0,0.00032218,120]
[322780435,1713279812873,-1274.66942537,0.00032218,30]
[322780436,1713279812894,-287.1965233,0.00032218,120]
[322780437,1713279812917,-208.07835569,0.00032218,120]
[322780438,1713279812943,-841.66964036,0.00032218,120]
[322780439,1713279812964,-1257.1056018,0.00032218,120]
[322780440,1713279812987,-21608.67732463,0.00032218,30]
[322780441,1713279813008,-139475.70554148,0.00032218,30]
[322780442,1713279813030,-120000.0,0.00032218,30]
[322780443,1713279813053,-20863.17025705,0.00032218,30]
[322780444,1713279813075,-4938.63461496,0.00032218,30]
[322780445,1713279813096,-116518.63593068,0.00032218,30]
[322780446,1713279813118,-699279.13998579,0.00032218,30]
[322780447,1713279817736,-60758.0385507,0.00032218,30]
[322780448,1713279817825,-75104.56763677,0.00032218,30]
[322780449,1713279817857,-57919.22029882,0.00032218,30]
[322780450,1713279817882,-264744.77932874,0.00032218,30]
[322780451,1713279817904,-28638.31329012,0.00032218,30]
[322780452,1713279817930,-16926.74313164,0.00032218,30]
[322780453,1713279817953,-7399.999998,0.00032218,30]
[322780454,1713279817975,-19238.58618404,0.00032218,30]
[322780455,1713279817997,-34949.47775474,0.00032218,30]
[322780456,1713279818018,-5329.49630507,0.00032218,30]
[322780457,1713279818040,-4566.80512555,0.00032218,30]
[322780458,1713279818063,-4961.16151147,0.00032218,30]
[322780459,1713279818086,-5121.48354201,0.00032218,30]
[322780460,1713279818107,-16329.66203629,0.00032218,30]
[322780461,1713279818128,-18280.87612663,0.00032218,30]
[322780462,1713279818149,-34825.35755481,0.00032218,30]
[322780463,1713279818174,-6214.63778163,0.00032218,30]
[322780464,1713279818196,-53768.66686076,0.00032218,30]
[322780465,1713279818217,-5522.87160532,0.00032218,30]
[322780466,1713279818239,-8670.46334185,0.00032218,30]
[322780467,1713279818261,-22964.38196153,0.00032218,30]
[322780468,1713279818283,-168.112831,0.00032218,30]
[322780469,1713279827816,-584093.1012769,0.00028,30]
[322780470,1713279827843,-3775.66228139,0.000285,120]
[322780471,1713279827868,-156.24442575,0.00029,120]
[322780472,1713279827890,-1200.0,0.00029,30]
[322780473,1713279827917,-296.86046218,0.0003,30]
[322780474,1713279827943,-1200.0,0.0003,31]
[322780475,1713279827966,-1000.79,0.0003,30]
[322780476,1713279827988,-13310.74738487,0.0003,30]
[322780477,1713279828016,-150.0,0.00030885,120]
[322780478,1713279828039,-1200.0,0.00031,35]
[322780479,1713279828062,-150.0,0.00031057,120]
[322780480,1713279828084,-150.0,0.00031207,120]
[322780481,1713279828107,-150.0,0.00031252,120]
[322780482,1713279828128,-290.87233882,0.000314,30]
[322780483,1713279828153,-150.0,0.00031546,120]
[322780484,1713279828181,-150.0,0.00031712,120]
[322780485,1713279828203,-150.0,0.00031769,120]
[322780486,1713279828227,-1200.0,0.00032,33]
[322780487,1713279828248,-1011.0,0.00032,90]
[322780488,1713279828272,-150.0,0.00032075,120]
[322780489,1713279828294,-150.0,0.000321,120]
[322780490,1713279828316,-150.0,0.00032172,120]
[322780491,1713279828353,-1208.0,0.00032347,30]
[322780492,1713279828377,-150.0,0.00032524,120]
[322780493,1713279828399,-150.0,0.00032587,120]
[322780494,1713279828427,-150.0,0.00032613,120]
[322780495,1713279828452,-150.0,0.00032722,120]
[322780496,1713279828474,-581.09,0.00032863,30]
[322780497,1713279828496,-581.09,0.00032863,30]
[322780498,1713279828520,-150.0,0.00032877,30]
[322780499,1713279828542,-150.0,0.00032877,30]
[322780500,1713279828564,-150.0,0.00032877,30]
[322780501,1713279828585,-150.0,0.00032877,30]
[322780502,1713279828607,-150.0,0.00032877,30]
[322780503,1713279828629,-150.0,0.00032877,30]
[322780504,1713279828650,-150.0,0.00032877,30]
[322780505,1713279828671,-150.0,0.00032877,30]
[322780506,1713279828694,-150.0,0.00032877,30]
[322780507,1713279828716,-233.10126041,0.00032877,30]
[322780508,1713279828741,-150.0,0.00032877,30]
[322780509,1713279828763,-150.0,0.00032877,30]
[322780510,1713279828785,-150.0,0.00032877,30]
[322780511,1713279829003,-150.0,0.00032877,30]
[322780512,1713279829028,-150.0,0.00032877,30]
[322780513,1713279829052,-150.0,0.00032877,30]
[322780514,1713279829077,-150.0,0.00032877,30]
[322780515,1713279829100,-150.0,0.00032877,30]
[322780516,1713279829123,-150.0,0.00032877,30]
[322780517,1713279829145,-150.0,0.00032877,30]
[322780518,1713279829168,-150.0,0.00032877,30]
[322780519,1713279829193,-150.0,0.00032877,30]
[322780520,1713279829215,-161.02677251,0.00032877,30]
[322780521,1713279829238,-150.0,0.00032877,30]
[322780522,1713279829260,-150.0,0.00032877,30]
[322780523,1713279829283,-171.95648077,0.00032877,30]
[322780524,1713279829306,-150.0,0.00032877,30]
[322780525,1713279829328,-159.02979444,0.00032877,30]
[322780526,1713279829350,-150.0,0.00032877,30]
[322780527,1713279829373,-150.0,0.00032877,30]
[322780528,1713279829399,-150.0,0.00032877,30]
[322780529,1713279829421,-150.0,0.00032877,30]
[322780530,1713279829448,-150.0,0.00032877,30]
[322780531,1713279829471,-150.0,0.00032877,30]
[322780532,1713279829494,-150.0,0.00032877,30]
[322780533,1713279829517,-150.0,0.00032877,30]
[322780534,1713279829539,-150.0,0.00032877,30]
[322780535,1713279829561,-150.0,0.00032877,30]
[322780536,1713279829584,-150.0,0.00032877,30]
[322780537,1713279829607,-150.0,0.00032877,30]
[322780538,1713279829629,-150.0,0.00032877,30]
[322780539,1713279829651,-150.0,0.00032877,30]
[322780540,1713279829678,-150.0,0.00032898,120]
[322780541,1713279829701,-373597.67083004,0.000329,30]
[322780542,1713279829724,-150.0,0.00032918,120]
[322780543,1713279829747,-157.35960346,0.00033,120]
[322780544,1713279829769,-1200.0,0.00033,34]
[322780545,1713279829794,-810.48168918,0.00033,30]
[322780546,1713279829818,-32957.583,0.00033,30]
[322780547,1713279829843,-150.0,0.00033023,120]
[322780548,1713279829866,-150.0,0.00033079,120]
[322780549,1713279829890,-581.09,0.00033137,30]
[322780550,1713279829914,-581.09,0.00033137,30]
[322780551,1713279829941,-150.0,0.00033217,120]
[322780552,1713279829965,-150.0,0.00033248,120]
[322780553,1713279829987,-150.0,0.00033297,120]
[322780554,1713279830010,-150.0,0.00033395,120]
[322780555,1713279830033,-581.09,0.0003341,30]
[322780556,1713279830056,-581.09,0.0003341,30]
[322780557,1713279830082,-581.09,0.00033683,30]
[322780558,1713279830104,-581.09,0.00033683,30]
[322780559,1713279830128,-150.0,0.00033689,120]
[322780560,1713279830151,-800.0,0.00033748,31]
[322780561,1713279830177,-150.0,0.00033771,120]
[322780562,1713279830200,-150.0,0.00033907,120]
[322780563,1713279830223,-150.0,0.00033935,120]
[322780564,1713279830246,-581.09,0.00033956,30]
[322780565,1713279830270,-581.09,0.00033956,30]
[322780566,1713279830294,-150.0,0.00033962,120]
[322780567,1713279830317,-2000.0,0.00034,30]
[322780568,1713279830360,-2000.0,0.00034,30]
[322780569,1713279830403,-2000.0,0.00034,30]
[322780570,1713279830444,-2000.0,0.00034,30]
[322780571,1713279830477,-2000.0,0.00034,30]
[322780572,1713279830505,-2000.0,0.00034,30]
[322780573,1713279830530,-1200.0,0.00034,35]
[322780574,1713279830554,-2000.0,0.00034,30]
[322780575,1713279830578,-4000.0,0.00034,120]
[322780576,1713279830602,-150.0,0.0003418,120]
[322780577,1713279830624,-5039.93331,0.00034191,30]
[322780578,1713279830649,-581.09,0.0003423,30]
[322780579,1713279830677,-581.09,0.0003423,30]
[322780580,1713279830701,-581.09,0.00034503,30]
[322780581,1713279830724,-581.09,0.00034503,30]
[322780582,1713279830748,-150.0,0.00034511,120]
[322780583,1713279830773,-150.0,0.00034629,120]
[322780584,1713279830797,-150.0,0.00034786,120]
[322780585,1713279830820,-665.05983668,0.000348,30]
[322780586,1713279830850,-150.0,0.00034803,120]
[322780587,1713279830874,-457.0,0.00035,120]
[322780588,1713279830897,-163.50407417,0.00035,30]
[322780589,1713279830921,-4190.99632342,0.00035,30]
[322780590,1713279830947,-105863.21657246,0.00035,30]
[322780591,1713279830970,-150.0,0.00035,120]
[322780592,1713279830994,-2400.0,0.00035,36]
[322780593,1713279831017,-1200.0,0.00035,36]
[322780594,1713279831040,-6000.0,0.00035,30]
[322780595,1713279831064,-150.0,0.00035143,120]
[322780596,1713279831090,-150.0,0.00035253,120]
[322780597,1713279831114,-150.0,0.00035306,120]
[322780598,1713279831137,-150.0,0.00035322,120]
[322780599,1713279831161,-150.0,0.00035395,120]
[322780600,1713279831188,-150.0,0.00035525,120]
[322780601,1713279831211,-150.0,0.00035617,120]
[322780602,1713279831235,-150.0,0.00035705,120]
[322780603,1713279831259,-150.0,0.00035836,120]
[322780604,1713279831283,-600.0,0.00036,37]
[322780605,1713279831305,-150.0,0.00036,120]
[322780606,1713279831330,-150.0,0.00036184,120]
[322780607,1713279831354,-150.0,0.00036344,120]
[322780608,1713279831379,-150.0,0.00036353,120]
[322780609,1713279831404,-150.0,0.00036385,120]
[322780610,1713279831430,-150.0,0.00036732,120]
[322780611,1713279831454,-12993.54228255,0.000368,30]
[322780612,1713279834863,-8993.99371745,0.000368,30]
[322780613,1713279834888,-150.0,0.00036861,120]
[322780614,1713279834911,-500.0,0.00037,30]
[322780615,1713279834935,-600.0,0.00037,38]
[322780616,1713279834958,-150.0,0.00037,120]
[322780617,1713279834985,-150.0,0.0003715,120]
[322780618,1713279835009,-150.0,0.00037252,120]
[322780619,1713279835033,-150.0,0.00037313,120]
[322780620,1713279835055,-150.0,0.000375,120]
[322780621,1713279835078,-600.0,0.00038,39]
[322780622,1713279835099,-500.0,0.00038,30]
[322780623,1713279835122,-31568.857,0.00038,30]
[322780624,1713279835144,-199.40069518,0.00038,39]
[322780625,1713279835166,-150.0,0.00038,120]
[322780626,1713279835192,-8812.2280005,0.00038646,35]
[322780627,1713279835214,-365.58999297,0.00038646,35]
[322780628,1713279835235,-362.76964149,0.00038646,35]
[322780629,1713279835259,-242.88691863,0.00038646,35]
[322780630,1713279835280,-25000.0,0.00038646,35]
[322780631,1713279835301,-25000.0,0.00038646,35]
[322780632,1713279835324,-25000.0,0.00038646,35]
[322780633,1713279835346,-25000.0,0.00038646,35]
[322780634,1713279835367,-25000.0,0.00038646,35]
[322780635,1713279835388,-25000.0,0.00038646,35]
[322780636,1713279835415,-25000.0,0.00038646,35]
[322780637,1713279835438,-25000.0,0.00038646,35]
[322780638,1713279835462,-16294.00578631,0.00038646,35]
[322780639,1713279835484,-744.13613879,0.000389,30]
[322780640,1713279835506,-500.0,0.00039,60]
[322780641,1713279835529,-34536.835,0.00039,30]
[322780642,1713279835551,-600.0,0.00039,40]
[322780643,1713279835573,-67000.0,0.00039,30]
[322780644,1713279835595,-4000.0,0.00039,120]
[322780645,1713279835619,-361.75372269,0.00039,39]
[322780646,1713279835640,-150.0,0.00039,120]
[322780647,1713279835663,-40158.54319356,0.00039,120]
[322780648,1713279835687,-2416.0,0.00039181,120]
[322780649,1713279835709,-10000.0,0.000399,30]
[322780650,1713279835734,-50000.0,0.0004,30]
[322780651,1713279835759,-50000.0,0.0004,40]
[322780652,1713279835782,-959.45180685,0.0004,30]
[322780653,1713279835804,-1900.0,0.0004,60]
[322780654,1713279835827,-402.81108403,0.0004,30]
[322780655,1713279835851,-500.0,0.0004,30]
[322780656,1713279835875,-163.02316802,0.0004,30]
[322780657,1713279835897,-178.91555875,0.0004,30]
[322780658,1713279835919,-300.0,0.0004,30]
[322780659,1713279835942,-300.0,0.0004,30]
[322780660,1713279835964,-824.62060728,0.0004,30]
[322780661,1713279835986,-530.17822177,0.0004,120]
[322780662,1713279836008,-1399.99674781,0.0004,30]
[322780663,1713279836029,-268826.7563317,0.0004,30]
[322780664,1713279836051,-214.21378681,0.0004,30]
[322780665,1713279836074,-528.0,0.0004,30]
[322780666,1713279836096,-2000.0,0.0004,30]
[322780667,1713279836119,-2000.0,0.0004,30]
[322780668,1713279836140,-2000.0,0.0004,30]
[322780669,1713279836161,-819.69662556,0.0004,120]
[322780670,1713279836186,-600.0,0.0004,41]
[322780671,1713279836208,-1000.0,0.0004,90]
[322780672,1713279836231,-450.00000001,0.0004,40]
[322780673,1713279836253,-10000.0,0.0004,30]
[322780674,1713279836275,-203.39439469,0.0004,120]
[322780675,1713279836298,-150.0,0.0004,120]
[322780676,1713279836321,-41728.46627266,0.0004,120]
[322780677,1713279836343,-558.46142864,0.000408,33]
[322780678,1713279836366,-200.0,0.0004085,120]
[322780679,1713279836392,-50000.0,0.00041,31]
[322780680,1713279836418,-50000.0,0.00041,41]
[322780681,1713279836443,-916.40987175,0.00041,50]
[322780682,1713279836469,-600.0,0.00041,42]
[322780683,1713279836492,-600.0,0.00041,42]
[322780684,1713279836514,-150.0,0.00041,120]
[322780685,1713279836543,-516.20936984,0.00041,120]
[322780686,1713279836566,-227922.39491626,0.00041062,120]
[322780687,1713279840435,-47674.44749851,0.00041062,120]
[322780688,1713279840463,-1000.0,0.00041095,60]
[322780689,1713279840490,-1000.0,0.00041095,60]
[322780690,1713279840514,-1000.0,0.00041095,60]
[322780691,1713279840537,-541.29278767,0.00041095,60]
[322780692,1713279840559,-320.12679218,0.00041095,120]
[322780693,1713279840583,-1069.78,0.00041095,30]
[322780694,1713279840610,-1069.78,0.00041095,30]
[322780695,1713279840636,-1069.78,0.00041095,30]
[322780696,1713279840661,-1069.78,0.00041095,30]
[322780697,1713279840688,-1069.78,0.00041095,30]
[322780698,1713279840716,-1069.78,0.00041095,30]
[322780699,1713279840739,-1069.78,0.00041095,30]
[322780700,1713279840762,-1069.78,0.00041095,30]
[322780701,1713279840786,-1069.78,0.00041095,30]
[322780702,1713279840810,-1069.78,0.00041095,30]
[322780703,1713279840841,-1069.78,0.00041095,30]
[322780704,1713279840868,-1069.78,0.00041095,30]
[322780705,1713279840893,-1069.78,0.00041095,30]
[322780706,1713279840918,-1069.78,0.00041095,30]
[322780707,1713279840945,-1069.78,0.00041095,30]
[322780708,1713279840971,-1069.78,0.00041095,30]
[322780709,1713279840996,-1069.78,0.00041095,30]
[322780710,1713279841021,-1069.78,0.00041095,30]
[322780711,1713279841053,-1069.78,0.00041095,30]
[322780712,1713279841080,-1069.78,0.00041095,30]
[322780713,1713279841106,-1069.78,0.00041095,30]
[322780714,1713279841133,-1069.78,0.00041095,30]
[322780715,1713279841159,-1069.78,0.00041095,30]
[322780716,1713279841185,-1069.96593548,0.00041095,30]
[322780717,1713279841212,-200.0,0.0004158,120]
[322780718,1713279841238,-33957.859,0.000418,30]
[322780719,1713279841266,-50000.0,0.00042,42]
[322780720,1713279841293,-50000.0,0.00042,32]
[322780721,1713279841319,-2161.4248908,0.00042,30]
[322780722,1713279841344,-6373.95457514,0.00042,30]
[322780723,1713279841374,-1450.0,0.00042,60]
[322780724,1713279841401,-600.0,0.00042,43]
[322780725,1713279841426,-2020.07342559,0.00042,120]
[322780726,1713279841454,-150.0,0.00042,120]
[322780727,1713279841482,-1000.0,0.00042499,120]
[322780728,1713279841511,-150.0,0.000425,120]
[322780729,1713279841536,-782.56823386,0.000425,100]
[322780730,1713279841561,-2789.70778761,0.0004278,50]
[322780731,1713279841587,-8678.36674149,0.000428,60]
[322780732,1713279841622,-661.31869509,0.0004299,120]
[322780733,1713279841659,-50000.0,0.00043,33]
[322780734,1713279841688,-50000.0,0.00043,43]
[322780735,1713279841714,-250.0,0.00043,30]
[322780736,1713279841740,-600.0,0.00043,44]
[322780737,1713279841766,-1350.0,0.00043,80]
[322780738,1713279841792,-150.0,0.00043,120]
[322780739,1713279841818,-69056.18,0.00043836,30]
[322780740,1713279841846,-50000.0,0.00044,34]
[322780741,1713279841875,-50000.0,0.00044,44]
[322780742,1713279841902,-600.0,0.00044,45]
[322780743,1713279841929,-334.95512308,0.00044,30]
[322780744,1713279841956,-250.0,0.00044,30]
[322780745,1713279841983,-1250.0,0.00044,90]
[322780746,1713279842008,-820.0,0.00044,120]
[322780747,1713279842033,-1000.0,0.00044,120]
[322780748,1713279842058,-150.0,0.00044,120]
[322780749,1713279842083,-1718.967695,0.00044,44]
[322780750,1713279842108,-1539.71299801,0.00044335,120]
[322780751,1713279842136,-50000.0,0.00045,45]
[322780752,1713279842162,-50000.0,0.00045,35]
[322780753,1713279842190,-1059.92800631,0.00045,120]
[322780754,1713279842214,-150.0,0.00045,85]
[322780755,1713279842239,-1700.0,0.00045,60]
[322780756,1713279842263,-10343.39200185,0.00045,60]
[322780757,1713279842287,-10000.0,0.00045,30]
[322780758,1713279842312,-559490.81781233,0.00045,120]
[322780759,1713279845618,16688.41357389,0.00014249,2]
[322780760,1713279845642,2971.05932415,0.00014249,2]
[322780761,1713279848051,-310907.27062764,0.00045,120]
[322780762,1713279848074,-10000.0,0.00045,120]
[322780763,1713279848097,-600.0,0.00045,46]
[322780764,1713279848120,-578.25302052,0.00045,30]
[322780765,1713279848142,-364.03375063,0.00045,45]
[322780766,1713279848166,-300.0,0.00045,60]
[322780767,1713279848193,-300.0,0.00045,60]
[322780768,1713279848216,-150.999999,0.00045,120]
[322780769,1713279848240,-250.0,0.00045,30]
[322780770,1713279848263,-2421.45023398,0.00045,60]
[322780771,1713279848286,-1670.52179527,0.00045,30]
[322780772,1713279848308,-777.95419656,0.00045,30]
[322780773,1713279848331,-568.91039898,0.00045,30]
[322780774,1713279848353,-2000.0,0.00045,45]
[322780775,1713279848375,-9519.84163244,0.00045,120]
[322780776,1713279848399,-592.0,0.00045,60]
[322780777,1713279848429,-319.80813995,0.00045,30]
[322780778,1713279848455,-150.0,0.00045,120]
[322780779,1713279848479,-50413.23469542,0.00045,30]
[322780780,1713279848501,-50000.0,0.00045,45]
[322780781,1713279848525,-320.5809,0.0004514,30]
[322780782,1713279848547,-10000.0,0.000452,30]
[322780783,1713279848572,-2200.0,0.000455,120]
[322780784,1713279848598,-50000.0,0.00046,36]
[322780785,1713279848622,-50000.0,0.00046,46]
[322780786,1713279848646,-1150.0,0.00046,120]
[322780787,1713279848669,-150.0,0.00046,96]
[322780788,1713279848697,-600.0,0.00046,47]
[322780789,1713279848720,-250.0,0.00046,30]
[322780790,1713279848744,-1011.3,0.00046,120]
[322780791,1713279848766,-2100.0,0.00046,30]
[322780792,1713279848789,-150.0,0.00046,120]
[322780793,1713279848814,-1371940.28183531,0.00046,120]
[322780794,1713279848839,-1000.0,0.00046575,120]
[322780795,1713279848863,-1000.0,0.00046575,120]
[322780796,1713279848887,-1000.0,0.00046575,120]
[322780797,1713279848910,-1000.0,0.00046575,120]
[322780798,1713279848933,-1000.0,0.00046575,120]
[322780799,1713279848961,-1000.0,0.00046575,120]
[322780800,1713279848985,-1000.0,0.00046575,120]
[322780801,1713279849012,-1000.0,0.00046575,120]
[322780802,1713279849038,-1000.0,0.00046575,120]
[322780803,1713279849063,-1000.0,0.00046575,120]
[322780804,1713279849122,-1000.0,0.00046575,120]
[322780805,1713279849148,-1000.0,0.00046575,120]
[322780806,1713279849172,-1000.0,0.00046575,120]
[322780807,1713279849204,-1000.0,0.00046575,120]
[322780808,1713279849230,-1000.0,0.00046575,120]
[322780809,1713279849254,-1000.0,0.00046575,120]
[322780810,1713279849278,-1000.0,0.00046575,120]
[322780811,1713279849301,-1000.0,0.00046575,120]
[322780812,1713279849325,-228.80061039,0.00046575,120]
[322780813,1713279849352,-4500.0,0.000467,115]
[322780814,1713279849378,-1092.0,0.00046926,30]
[322780815,1713279849405,-17605.60484114,0.0004699,30]
[322780816,1713279849431,-50000.0,0.00047,47]
[322780817,1713279849461,-50000.0,0.00047,37]
[322780818,1713279849485,-200.0,0.00047,108]
[322780819,1713279849507,-3200.51251326,0.00047,30]
[322780820,1713279849530,-2978.58094069,0.00047,120]
[322780821,1713279849553,-600.0,0.00047,48]
[322780822,1713279849576,-250.0,0.00047,60]
[322780823,1713279849600,-241.93192768,0.00047,30]
[322780824,1713279849623,-150.0,0.00047,120]
[322780825,1713279849647,-1092.0,0.00047176,30]
[322780826,1713279849670,-26189.05767968,0.000473,120]
[322780827,1713279849699,-1092.0,0.00047426,30]
[322780828,1713279849722,-150.0,0.000475,120]
[322780829,1713279849745,-1092.0,0.00047676,30]
[322780830,1713279849767,-5350.0,0.000478,30]
[322780831,1713279849790,-576.82598001,0.000478,30]
[322780832,1713279849813,-57136.4922683,0.000478,60]
[322780833,1713279849835,-5350.0,0.000478,31]
[322780834,1713279849857,-1092.0,0.00047926,30]
[322780835,1713279849885,-50000.0,0.00048,38]
[322780836,1713279849911,-50000.0,0.00048,48]
[322780837,1713279849934,-950.0,0.00048,120]
[322780838,1713279849963,-2500.0,0.00048,120]
[322780839,1713279849988,-600.0,0.00048,49]
[322780840,1713279850010,-12862.29649583,0.00048,120]
[322780841,1713279850034,-250.0,0.00048,60]
[322780842,1713279850056,-151.0,0.00048,120]
[322780843,1713279850078,-270.05555556,0.00048,120]
[322780844,1713279850101,-1200.0,0.00048,30]
[322780845,1713279850123,-268.82797903,0.00048,120]
[322780846,1713279850145,-418.61,0.00048,120]
[322780847,1713279850168,-2057.39,0.00048,30]
[322780848,1713279850196,-150.0,0.00048,120]
[322780849,1713279850219,-698.76426528,0.00048,120]
[322780850,1713279850241,-1092.0,0.00048176,30]
[322780851,1713279850263,-1000.0,0.000483,30]
[322780852,1713279850285,-1000.0,0.000483,30]
[322780853,1713279850308,-1000.0,0.000483,30]
[322780854,1713279850331,-1000.0,0.000483,30]
[322780855,1713279850354,-1000.0,0.000483,30]
[322780856,1713279850376,-1000.0,0.000483,30]
[322780857,1713279850403,-1000.0,0.000483,30]
[322780858,1713279850428,-1000.0,0.000483,30]
[322780859,1713279850457,-834.13,0.00048356,120]
[322780860,1713279850480,-1919.83,0.000484,120]
[322780861,1713279850503,-1092.0,0.00048426,30]
[322780862,1713279850525,-8000.0,0.000485,30]
[322780863,1713279850548,-10000.0,0.000486,30]
[322780864,1713279850571,-270.05555556,0.00048603,120]
[322780865,1713279850596,-834.13,0.0004863,120]
[322780866,1713279850620,-1092.0,0.00048676,30]
[322780867,1713279850644,-4500.0,0.000488,120]
[322780868,1713279850667,-7590.37624127,0.000488,30]
[322780869,1713279850696,-67646.21740293,0.00048827,120]
[322780870,1713279850718,-507.79199758,0.0004888,120]
[322780871,1713279850740,-834.13,0.00048904,120]
[322780872,1713279850763,-1092.0,0.00048926,30]
[322780873,1713279850786,-1000.0,0.00048999,120]
[322780874,1713279850812,-50000.0,0.00049,49]
[322780875,1713279850838,-50000.0,0.00049,39]
[322780876,1713279850861,-155.59805784,0.00049,60]
[322780877,1713279850884,-730.51474731,0.00049,120]
[322780878,1713279850909,-3896.05023585,0.00049,120]
[322780879,1713279850933,-2100.0,0.00049,30]
[322780880,1713279850959,-4000.0,0.00049,30]
[322780881,1713279850982,-4000.0,0.00049,30]
[322780882,1713279851004,-4000.0,0.00049,30]
[322780883,1713279851026,-4000.0,0.00049,30]
[322780884,1713279851049,-4000.0,0.00049,30]
[322780885,1713279851071,-4000.0,0.00049,30]
[322780886,1713279851093,-4000.0,0.00049,30]
[322780887,1713279851114,-4000.0,0.00049,30]
[322780888,1713279851135,-250.0,0.00049,60]
[322780889,1713279851157,-500.0,0.00049,120]
[322780890,1713279851178,-600.0,0.00049,50]
[322780891,1713279851201,-1200.0,0.00049,50]
[322780892,1713279851222,-1160.85282829,0.00049,120]